bitfinex/quotes_ETHUSD_20220119
["timestamp","ask_amount","ask_price","bid_price","bid_amount"]
[1642564569472,0.388,3117.5,3116.7,6.55]
[1642564569675,0.388,3117.5,3117.3,0.01252921]
[1642564570073,0.388,3117.5,3117.3,0.81487411]
[1642564570724,0.27630248,3118.0,3117.3,0.81487411]
[1642564571130,0.00795792,3117.9,3117.4,2.81828961]
[1642564571330,0.00795792,3117.9,3117.5,1.20209832]
[1642564571531,0.0073895,3117.8,3117.3,0.81487411]
[1642564571735,0.27630248,3118.0,3117.3,0.8023449]
[1642564571736,0.42423916,3117.9,3117.3,0.8023449]
[1642564571931,0.27630248,3118.0,3117.3,0.8023449]
[1642564571932,0.27630248,3118.0,3117.4,0.00227369]
[1642564572127,1.07871248,3118.0,3117.4,0.00227369]
[1642564572533,1.07871248,3118.0,3117.7,0.01242237]
[1642564572534,0.27630248,3118.0,3117.7,0.01242237]
[1642564572730,0.27630248,3118.0,3117.7,0.8022856]
[1642564572929,0.27630248,3118.0,3117.4,0.00227369]
[1642564573132,1.25724199,3117.9,3117.4,0.00227369]
[1642564573425,0.96394199,3117.9,3117.3,0.00284212]
[1642564573631,4.00520139,3117.4,3117.3,0.00284212]
[1642564574029,5.60520139,3117.4,3117.3,0.00284212]
[1642564574228,1.6,3117.4,3116.6,1.604997]
[1642564574486,0.27630248,3118.0,3116.8,1.5984046]
[1642564574686,0.27630248,3118.0,3117.4,0.01297582]
[1642564574886,0.27630248,3118.0,3117.5,1.10906663]
[1642564575076,0.27630248,3118.0,3117.5,1.1107719]
[1642564575276,0.27630248,3118.0,3117.6,0.00113685]
[1642564575878,2.4066,3119.6,3118.7,1.3006412]
[1642564576080,2.4066,3119.6,3117.9,0.01275878]
[1642564576081,1.60647732,3118.7,3117.9,0.01275878]
[1642564576284,0.00511581,3118.7,3118.0,0.13819997]
[1642564576677,0.00511581,3118.7,3118.1,1.5984046]
[1642564576877,0.00511581,3118.7,3118.1,0.801969]
[1642564577482,1.15866466,3118.7,3118.1,0.801969]
[1642564577681,0.00511581,3118.7,3118.1,0.801969]
[1642564578520,1.19014,3119.1,3118.1,7.351969]
[1642564578521,0.10001581,3119.1,3118.1,7.351969]
[1642564578722,0.10001581,3119.1,3118.2,0.00284211]
[1642564578929,0.00170527,3119.0,3118.2,0.00284211]
[1642564579324,0.00113685,3118.9,3118.6,0.01224417]
[1642564579724,1.47640036,3119.6,3118.6,2.31374638]
[1642564579925,0.388,3119.5,3118.7,2.73671284]
[1642564580126,1.19452739,3119.5,3118.6,0.31224417]
[1642564580325,0.00397897,3119.4,3118.6,0.31224417]
[1642564580528,0.388,3119.3,3118.6,0.31224417]
[1642564580727,0.39141054,3119.3,3118.7,2.73666906]
[1642564580932,1.60401,3120.3,3118.7,2.73666906]
[1642564580933,1.60544567,3120.7,3119.2,0.0127888]
[1642564581127,0.388,3120.6,3119.2,0.0127888]
[1642564581327,0.00113685,3119.5,3119.3,0.16004]
[1642564581539,8.01753,3122.6,3119.4,1.61646407]
[1642564581540,0.388,3121.0,3119.4,1.61646407]
[1642564581869,0.00568423,3120.5,3119.5,1.38842975]
[1642564582068,0.00568423,3120.5,3119.5,0.3]
[1642564582069,1.51146047,3120.1,3119.5,0.3]
[1642564582276,1.51146047,3120.1,3119.0,1.61646407]
[1642564582572,0.34084212,3120.0,3119.1,0.00227369]
[1642564582770,0.388,3119.9,3119.1,0.00511581]
[1642564582970,1.10348735,3119.5,3118.7,0.00738951]
[1642564583184,0.388,3119.4,3118.7,0.802045]
[1642564583373,0.388,3119.4,3118.7,0.80943451]
[1642564583573,0.388,3119.4,3118.8,0.00682108]
[1642564583574,1.13302354,3119.2,3118.8,0.00682108]
[1642564583774,0.388,3119.1,3118.8,0.00682108]
[1642564584974,0.09644354,3119.0,3118.8,0.00682108]
[1642564585178,0.388,3119.0,3118.8,0.00682108]
[1642564585632,1.28403744,3118.6,3118.2,0.01023162]
[1642564585827,1.28403744,3118.6,3118.1,0.01080005]
[1642564585828,0.388,3118.5,3118.1,0.01080005]
[1642564586432,0.388,3118.5,3117.9,0.0119369]
[1642564587428,1.29932255,3118.1,3117.9,0.0119369]
[1642564587628,0.388,3118.0,3117.9,0.0119369]
[1642564587832,1.87442071,3118.0,3117.9,0.0119369]
[1642564588231,0.388,3118.0,3117.9,0.0119369]
[1642564588431,0.388,3118.0,3117.6,0.01364217]
[1642564588630,0.0984,3118.0,3117.6,0.01364217]
[1642564589032,0.80238,3117.9,3117.6,0.01364217]
[1642564589231,0.388,3117.8,3117.6,0.01364217]
[1642564589477,2.10170255,3118.1,3117.6,0.01364217]
[1642564589478,1.99299,3117.7,3117.6,0.01364217]
[1642564589675,0.388,3117.7,3117.6,0.01364217]
[1642564590179,1.19047,3117.7,3117.6,0.01364217]
[1642564590387,2.41604282,3117.7,3117.6,0.01364217]
[1642564590578,4.4,3117.5,3116.5,2.86252704]
[1642564590776,1.53998693,3116.7,3116.4,3.55062781]
[1642564590975,1.53998693,3116.7,3116.6,0.00568423]
[1642564591175,1.92798693,3116.7,3116.6,0.00568423]
[1642564591375,4.23550937,3116.7,3116.6,0.00568423]
[1642564591577,3.53343693,3116.7,3116.6,0.00568423]
[1642564591879,7.18343693,3116.7,3116.6,0.00568423]
[1642564592078,3.43343693,3116.7,3116.6,0.00568423]
[1642564592477,3.43343693,3116.7,3115.4,2.85401123]
[1642564592478,0.80279,3116.4,3115.4,1.74484455]
[1642564592676,0.80285,3116.2,3115.5,2.72740452]
[1642564592876,0.388,3116.1,3115.5,2.73365718]
[1642564593135,0.388,3116.1,3115.7,0.8027139]
[1642564593338,0.388,3116.7,3116.0,0.01234084]
[1642564593533,1.6076109,3116.5,3116.3,1.604919]
[1642564593731,1.3115109,3116.5,3116.4,2.72740452]
[1642564593931,0.388,3116.7,3116.4,2.72854137]
[1642564594136,0.388,3116.7,3116.6,1.44319153]
[1642564594331,0.388,3116.7,3116.4,0.00113685]
[1642564594536,0.04921432,3116.6,3116.4,0.00113685]
[1642564594737,1.97759754,3116.5,3116.1,2.72985324]
[1642564594935,2.36559754,3116.5,3116.2,0.00227369]
[1642564595332,2.36559754,3116.5,3116.0,2.73060157]
[1642564595535,2.36559754,3116.5,3116.0,0.00341054]
[1642564595732,2.36559754,3116.5,3116.1,0.00284212]
[1642564595932,2.36559754,3116.5,3116.0,0.00341054]
[1642564596732,2.66559754,3116.5,3115.7,2.73244122]
[1642564596971,2.36559754,3116.5,3115.8,0.00454739]
[1642564597169,0.03061691,3116.3,3115.8,0.00454739]
[1642564597382,2.36559754,3116.5,3116.0,0.02834358]
[1642564597383,0.388,3116.2,3116.0,0.02834358]
[1642564597575,0.388,3116.1,3115.8,0.8027342]
[1642564597776,0.8029,3116.0,3115.4,0.13935525]
[1642564597974,0.388,3115.9,3115.4,0.13935525]
[1642564598182,0.388,3115.9,3115.5,0.00625266]
[1642564598375,0.388,3115.9,3115.6,2.78243054]
[1642564598573,0.388,3115.9,3115.5,0.00625266]
[1642564598775,0.0953,3115.9,3115.7,0.00511581]
[1642564598979,1.50144636,3115.8,3115.7,0.00511581]
[1642564599179,1.88944636,3115.8,3115.7,0.00511581]
[1642564600374,8.30454636,3115.8,3115.7,0.00511581]
[1642564600637,8.30454636,3115.8,3115.4,0.13935525]
[1642564600638,2.40586681,3115.7,3115.4,0.13935525]
[1642564600834,5.038,3115.6,3115.5,0.00113685]
[1642564601036,5.038,3115.6,3114.7,1.1829]
[1642564601037,6.5,3115.5,3114.7,1.1829]
[1642564601236,5.236,3115.4,3114.7,1.1829]
[1642564601455,7.64355945,3115.3,3114.8,0.00397896]
[1642564601641,1.388,3115.2,3114.8,0.00397896]
[1642564601836,1.388,3115.2,3113.6,2.81997412]
[1642564601837,1.21215395,3114.0,3113.6,2.81997412]
[1642564602040,12.91968657,3115.1,3114.0,3.63646184]
[1642564602041,5.848,3115.0,3114.0,3.63646184]
[1642564602235,0.3,3114.9,3114.1,2.72863883]
[1642564602435,0.388,3114.8,3114.1,2.7326178]
[1642564602640,0.388,3114.8,3114.2,2.73204937]
[1642564602839,0.388,3114.8,3114.2,0.00341054]
[1642564603059,0.388,3114.8,3114.4,1.21161021]
[1642564603060,1.19138,3114.8,3114.4,1.21161021]
[1642564603241,1.19138,3114.8,3114.5,2.68971817]
[1642564603242,0.388,3114.8,3114.5,2.68971817]
[1642564603437,0.388,3114.8,3114.6,2.74049219]
[1642564603636,0.388,3114.8,3114.7,8.67973679]
[1642564603837,0.0969,3114.8,3114.7,5.87822792]
[1642564604037,0.0969,3114.8,3114.7,2.72822792]
[1642564604693,0.0969,3114.8,3114.6,0.01340112]
[1642564604892,0.0969,3114.8,3114.7,2.72816399]
[1642564605998,0.0969,3114.8,3114.7,2.72822314]
[1642564606196,0.0969,3114.8,3114.6,0.00113685]
[1642564608226,1.52726589,3114.7,3114.6,0.00113685]
[1642564608425,1.91526589,3114.7,3114.2,0.00341054]
[1642564608627,1.86526589,3114.7,3114.2,0.00341054]
[1642564609026,1.56606589,3114.7,3114.2,0.00341054]
[1642564610337,1.56606589,3114.7,3114.3,0.07116097]
[1642564610629,1.56606589,3114.7,3114.4,0.0022737]
[1642564610830,0.07773941,3114.6,3114.4,0.0022737]
[1642564611035,0.388,3114.5,3114.1,2.73245144]
[1642564611229,1.19131,3114.4,3114.2,2.73207151]
[1642564611431,1.19131,3114.4,3114.2,0.00341054]
[1642564611630,1.19131,3114.4,3114.3,0.00284212]
[1642564611874,1.19131,3114.4,3114.1,2.73266844]
[1642564612181,2.44797474,3114.4,3114.2,0.00341054]
[1642564612574,2.44797474,3114.4,3114.1,2.73267027]
[1642564612776,2.74797474,3114.4,3114.2,0.00341054]
[1642564612983,6.60697,3114.3,3114.0,3.63646184]
[1642564613173,0.388,3114.2,3114.0,3.63646184]
[1642564613380,1.43088449,3113.3,3112.9,7.4523]
[1642564613578,7.1031,3114.2,3113.4,2.86176897]
[1642564613579,0.80351,3113.8,3113.4,2.86176897]
[1642564613778,1.20570828,3113.6,3113.5,2.72899251]
[1642564613978,1.59370828,3113.6,3113.5,2.72899251]
[1642564614179,1.29350828,3113.6,3113.5,2.72899251]
[1642564614382,1.29350828,3113.6,3113.4,2.86176897]
[1642564614581,1.59350828,3113.6,3113.4,2.86176897]
[1642564614781,1.59350828,3113.6,3113.5,2.7291881]
[1642564614782,1.29350828,3113.6,3113.5,2.7291881]
[1642564614980,1.29350828,3113.6,3113.0,0.00682108]
[1642564614981,7.51876,3113.5,3113.0,0.00682108]
[1642564615180,1.25184002,3113.1,3113.0,0.00682108]
[1642564615379,1.25184002,3113.1,3112.6,0.00909478]
[1642564615380,8.05494002,3113.1,3112.6,0.00909478]
[1642564616270,8.35494002,3113.1,3112.6,0.00909478]
[1642564616475,1.0,3113.0,3112.6,0.00909478]
[1642564616674,6.85,3112.8,3112.5,1.1503]
[1642564616879,0.39136366,3112.7,3112.5,1.1503]
[1642564617076,2.43877572,3112.7,3112.5,1.1503]
[1642564617476,2.43877572,3112.7,3112.4,0.01240872]
[1642564617680,0.388,3112.6,3112.5,4.45295775]
[1642564617981,0.388,3112.6,3112.0,1.61646407]
[1642564618187,0.388,3112.6,3111.9,1.61646407]
[1642564618378,0.21683161,3112.6,3112.1,0.00284212]
[1642564618779,3.41683161,3112.6,3112.1,0.00284212]
[1642564618980,3.41683161,3112.6,3112.2,1.40678588]
[1642564619180,3.12623161,3112.6,3112.2,1.40678588]
[1642564619481,3.12623161,3112.6,3112.3,0.00170527]
[1642564619681,2.43877572,3112.7,3112.6,4.15248072]
[1642564620286,2.82677572,3112.7,3112.6,4.15248072]
[1642564621484,2.43877572,3112.7,3112.6,8.10248072]
[1642564622184,2.43877572,3112.7,3112.6,4.15248072]
[1642564622587,3.12677572,3112.7,3112.6,4.15248072]
[1642564622785,3.42677572,3112.7,3112.6,4.15248072]
[1642564622985,4.42677572,3112.7,3112.6,4.15248072]
[1642564623233,6.65472823,3112.6,3112.3,0.00170527]
[1642564623427,1.87880536,3112.5,3112.3,0.00170527]
[1642564623629,2.99197666,3112.6,3112.5,3.75761072]
[1642564624028,1.38423666,3112.6,3112.5,3.75761072]
[1642564624228,1.09423666,3112.6,3112.5,3.75761072]
[1642564624831,1.89796666,3112.6,3112.5,3.75761072]
[1642564625034,0.80373,3112.6,3112.5,3.75761072]
[1642564625234,0.338,3112.6,3112.5,8.95761072]
[1642564625435,0.338,3112.6,3112.5,3.75761072]
[1642564625839,1.14171,3112.6,3112.5,3.75761072]
[1642564626232,0.338,3112.6,3112.5,3.75761072]
[1642564626447,1.338,3112.6,3112.5,3.75761072]
[1642564626908,0.338,3112.6,3112.5,3.75761072]
[1642564627496,1.338,3112.6,3112.5,3.75761072]
[1642564628203,1.638,3112.6,3112.5,3.75761072]
[1642564628405,1.338,3112.6,3112.5,3.75761072]
[1642564628600,3.77677572,3112.6,3112.5,3.75761072]
[1642564628801,4.07677572,3112.6,3112.5,3.75761072]
[1642564629002,3.77677572,3112.6,3112.5,3.75761072]
[1642564629204,3.48677572,3112.6,3112.5,3.75761072]
[1642564630203,3.48677572,3112.6,3112.5,6.487611]
[1642564632032,1.9259825,3112.7,3112.5,6.487611]
[1642564632231,1.9259825,3112.7,3112.6,2.73000028]
[1642564632437,2.3139825,3112.7,3112.6,2.73000028]
[1642564632833,8.7393825,3112.7,3112.6,2.73000028]
[1642564633038,7.7134,3112.7,3112.6,5.54373912]
[1642564633245,7.7134,3112.7,3112.6,10.90906096]
[1642564633246,0.43412443,3112.7,3112.6,10.90906096]
[1642564633441,0.43412443,3112.7,3112.6,10.5897145]
[1642564633652,4.848,3114.4,3113.4,0.87165939]
[1642564633836,4.848,3114.4,3113.5,2.73000028]
[1642564633837,0.388,3114.3,3113.5,2.73000028]
[1642564634036,1.08604052,3113.6,3113.5,2.73000028]
[1642564634236,0.388,3113.6,3113.5,2.73000028]
[1642564634482,0.39197897,3113.6,3113.5,2.73000028]
[1642564635280,1.59022021,3113.6,3113.5,2.73000028]
[1642564635480,0.00397897,3113.6,3113.5,3.33000028]
[1642564635682,0.00397897,3113.6,3113.5,2.73000028]
[1642564635880,0.00397897,3113.6,3113.5,3.03000028]
[1642564636081,0.34197897,3114.1,3113.6,6.55]
[1642564636284,0.388,3114.6,3113.7,2.77702579]
[1642564636480,0.388,3114.6,3113.6,6.55]
[1642564636481,0.00227369,3114.0,3113.8,2.73000028]
[1642564636704,0.00227369,3114.0,3113.9,2.73000028]
[1642564636881,0.80329,3114.2,3113.9,2.73000028]
[1642564637082,0.80329,3114.2,3114.0,2.73000028]
[1642564637285,0.00284211,3114.1,3113.4,0.87165939]
[1642564637484,0.00284211,3114.1,3113.4,2.48265551]
[1642564637687,0.00227369,3114.0,3113.4,2.48265551]
[1642564637984,0.00170527,3113.9,3113.5,1.61099612]
[1642564638235,0.00170527,3113.9,3113.6,1.6063599]
[1642564638437,0.00113684,3113.8,3113.7,7.25699805]
[1642564638639,0.00113684,3113.8,3113.4,0.87165939]
[1642564638640,1.77614964,3113.8,3113.4,0.87165939]
[1642564639038,0.80359,3113.7,3113.4,0.87165939]
[1642564639235,0.388,3113.6,3113.4,0.87165939]
[1642564639437,0.0895,3113.6,3113.4,0.87165939]
[1642564639937,0.3895,3113.6,3113.4,0.87165939]
[1642564640139,1.69664,3113.6,3113.4,0.87165939]
[1642564640936,1.99664,3113.6,3113.4,0.87165939]
[1642564641136,2.99664,3113.6,3113.4,0.87165939]
[1642564641345,1.99664,3113.6,3113.4,0.87165939]
[1642564642784,2.80018,3113.6,3113.4,0.87165939]
[1642564642987,0.80367,3113.4,3112.6,1.61270139]
[1642564643190,0.388,3113.3,3112.6,0.00170527]
[1642564643387,0.80381,3113.1,3112.7,0.00511582]
[1642564643591,6.8129,3113.0,3112.6,0.00568424]
[1642564643787,10.42898691,3113.0,3112.6,0.00568424]
[1642564643991,2.1038,3112.9,3112.6,0.00568424]
[1642564644186,6.8129,3112.8,3112.6,0.00568424]
[1642564644585,1.52192693,3112.7,3112.6,0.00568424]
[1642564644788,8.33482693,3112.7,3112.6,0.00568424]
[1642564645387,3.5,3112.6,3112.5,3.75761072]
[1642564645625,3.5,3112.6,3111.7,1.2386]
[1642564645626,3.6,3112.5,3111.7,1.2386]
[1642564645845,1.20932111,3112.4,3111.7,1.2386]
[1642564646032,1.11144856,3111.8,3111.7,1.2386]
[1642564646227,1.49944856,3111.8,3111.2,1.61099612]
[1642564646427,1.79944856,3111.8,3111.7,0.00511581]
[1642564646833,2.30336856,3111.8,3111.7,0.00511581]
[1642564647229,3.10727856,3111.8,3111.4,0.00682108]
[1642564647428,3.10727856,3111.8,3111.3,0.0073895]
[1642564647628,1.99583,3111.8,3111.3,0.0073895]
[1642564647830,1.19192,3111.8,3111.3,0.0073895]
[1642564648629,0.388,3111.8,3111.3,0.8112313]
[1642564648829,0.388,3111.8,3111.5,1.18140608]
[1642564649030,8.03232,3112.7,3111.8,0.776]
[1642564649234,8.03232,3112.7,3112.0,0.01284152]
[1642564649235,0.388,3112.6,3112.0,0.01284152]
[1642564649512,0.388,3112.6,3111.9,0.01673609]
[1642564649809,0.80364,3112.5,3112.0,0.80692394]
[1642564650008,0.88684,3112.5,3112.0,0.80692394]
[1642564650206,0.09782471,3112.4,3112.1,0.00284212]
[1642564650406,0.88684,3112.5,3112.1,0.00284212]
[1642564650607,0.88684,3112.5,3112.0,0.00341054]
[1642564650811,2.41117,3112.4,3112.0,0.00341054]
[1642564651016,2.41117,3112.4,3111.8,0.46364451]
[1642564651017,0.80407,3112.2,3111.9,0.00397896]
[1642564651212,6.8129,3112.1,3111.9,0.00397896]
[1642564651424,5.08303526,3112.0,3111.9,0.00397896]
[1642564651609,5.08303526,3112.0,3111.0,1.5647968]
[1642564651610,5.65,3111.9,3111.0,1.5647968]
[1642564651817,1.37073094,3111.3,3111.0,1.5647968]
[1642564652010,1.88120313,3111.2,3111.0,1.5647968]
[1642564652213,0.0807845,3110.9,3110.0,1.61099612]
[1642564652411,6.0,3111.0,3110.0,1.61099612]
[1642564652412,0.388,3110.8,3110.0,1.61099612]
[1642564652611,1.09589638,3110.1,3110.0,1.61099612]
[1642564652814,1.09589638,3110.1,3109.2,3.9491]
[1642564652815,2.98241197,3110.1,3109.9,1.61099612]
[1642564653011,2.98241197,3110.1,3110.0,0.00625266]
[1642564653231,2.98241197,3110.1,3110.0,2.73773813]
[1642564653435,4.9,3110.0,3109.3,1.61099612]
[1642564653641,6.55,3109.4,3109.2,1.51099612]
[1642564653838,4.188,3109.3,3109.0,2.41651327]
[1642564654033,0.388,3109.2,3109.0,2.41651327]
[1642564654236,0.388,3109.2,3109.1,0.00511581]
[1642564654440,5.65,3109.1,3108.4,5.65937835]
[1642564654656,5.65,3109.1,3108.1,2.41651327]
[1642564654657,0.80485,3108.9,3108.1,2.41651327]
[1642564654844,0.388,3108.8,3108.5,0.00341054]
[1642564655037,1.60977,3108.7,3108.1,2.41651327]
[1642564655237,0.388,3108.6,3108.3,0.00113685]
[1642564656036,0.80485,3108.5,3107.9,0.00341054]
[1642564656247,0.388,3108.4,3108.0,2.41651327]
[1642564656437,0.80485,3108.5,3108.4,0.776]
[1642564657780,1.19285,3108.5,3108.4,0.776]
[1642564658383,1.19285,3108.5,3108.1,0.00227369]
[1642564658590,6.85,3108.4,3108.1,0.00227369]
[1642564658783,2.47752849,3108.3,3108.0,0.00284212]
[1642564658982,2.47752849,3108.3,3107.6,0.00511581]
[1642564658983,1.88942139,3108.2,3107.6,0.00511581]
[1642564659182,0.80508,3108.0,3107.5,0.00568424]
[1642564659389,0.80508,3108.0,3107.5,2.42219751]
[1642564659390,0.388,3107.9,3107.5,2.42219751]
[1642564659591,0.388,3107.9,3107.4,2.42276593]
[1642564659886,0.388,3107.9,3107.5,0.00568424]
[1642564659887,1.61011,3107.8,3107.5,0.00568424]
[1642564660086,3.11153139,3108.2,3107.8,2.03118758]
[1642564660288,0.0839,3108.1,3107.8,2.03118758]
[1642564660486,0.8889,3108.1,3107.9,0.00341054]
[1642564660935,3.2,3108.5,3108.0,0.0120121]
[1642564661132,3.2,3108.5,3108.0,6.5620121]
[1642564661331,0.38913684,3108.7,3108.4,6.56243939]
[1642564661332,0.00113684,3108.7,3108.4,6.56243939]
[1642564661533,0.00113684,3108.7,3108.6,6.56212887]
[1642564661731,0.00113684,3108.7,3108.6,6.86212887]
[1642564661931,3.684e-05,3108.7,3108.6,9.08429376]
[1642564662135,2.74116222,3110.5,3109.0,1.6083521]
[1642564662335,0.388,3110.4,3109.6,0.8041854]
[1642564662535,0.00568424,3109.7,3109.6,7.63058534]
[1642564662739,0.388,3111.1,3109.7,6.55]
[1642564662938,0.388,3111.1,3110.0,0.01274818]
[1642564663142,0.388,3111.1,3110.0,2.7539104]
[1642564663143,0.00284212,3110.2,3110.0,2.7539104]
[1642564663339,0.00284212,3110.2,3110.0,4.361904]
[1642564663536,0.388,3111.9,3110.0,4.361904]
[1642564663537,0.388,3111.9,3110.1,10.85601627]
[1642564663936,1.14503112,3111.7,3110.1,10.85601627]
[1642564664139,1.14503112,3111.7,3110.9,1.48739249]
[1642564664381,0.01080005,3111.6,3110.9,1.78739249]
[1642564664580,0.01080005,3111.6,3110.9,0.3]
[1642564664885,1.35346879,3111.2,3110.9,1.6075018]
[1642564665082,0.388,3111.9,3111.2,2.70693757]
[1642564665083,0.76413162,3111.8,3111.2,2.70693757]
[1642564665286,1.0,3112.6,3111.2,2.70693757]
[1642564665287,3.21572,3113.2,3111.2,2.70693757]
[1642564665486,0.00170527,3111.8,3111.3,0.00113684]
[1642564665681,0.00170527,3111.8,3111.3,1.00113684]
[1642564665880,0.00113685,3111.7,3111.3,1.00113684]
[1642564666283,0.0022737,3111.9,3111.4,1.20311071]
[1642564666485,0.0022737,3111.9,3111.4,1.80311071]
[1642564667092,0.0022737,3111.9,3111.4,2.2071422]
[1642564667287,0.0022737,3111.9,3111.3,0.00113684]
[1642564667493,1.09095578,3111.5,3111.3,0.00113684]
[1642564668146,3.80318578,3111.5,3111.3,0.00113684]
[1642564669152,3.50318578,3111.5,3111.3,0.00113684]
[1642564669354,0.80406,3111.4,3111.3,0.00113684]
[1642564670157,0.80406,3111.4,3111.3,2.73192087]
[1642564670356,0.0022737,3111.9,3111.4,6.55]
[1642564670554,0.0022737,3111.9,3111.6,0.00875569]
[1642564670753,0.0022737,3111.9,3111.7,2.73071802]
[1642564670952,0.0022737,3111.9,3111.8,9.08071802]
[1642564671353,0.0022737,3111.9,3111.8,10.81929642]
[1642564671556,0.0022737,3111.9,3111.8,4.46929642]
[1642564671753,0.0022737,3111.9,3111.8,3.03071802]
[1642564671977,0.0022737,3111.9,3111.8,2.43014651]
[1642564671978,6.5022737,3111.9,3111.8,2.43014651]
[1642564672183,1.51034106,3111.6,3111.4,2.41218]
[1642564672378,1.89834106,3111.6,3111.4,2.41218]
[1642564672681,0.388,3111.6,3111.4,2.41218]
[1642564672977,3.65403,3111.5,3111.4,2.41218]
[1642564673179,3.95403,3111.5,3111.4,2.41218]
[1642564673378,3.65403,3111.5,3111.4,2.41218]
[1642564673578,3.95403,3111.5,3111.4,2.41218]
[1642564673777,2.01850653,3111.5,3111.4,2.41218]
[1642564673982,0.80403,3111.5,3111.4,2.41218]
[1642564674387,0.0022737,3111.9,3111.4,2.41218]
[1642564674587,0.0022737,3111.9,3111.4,5.68465581]
[1642564674783,0.0022737,3111.9,3111.4,3.01218]
[1642564674984,0.0022737,3111.9,3111.5,2.4549272]
[1642564675187,0.0022737,3111.9,3111.5,1.4549272]
[1642564675383,6.1351737,3112.0,3111.6,4.35]
[1642564675636,2.4381737,3112.0,3111.7,1.0]
[1642564675835,0.388,3112.8,3111.8,6.55]
[1642564676033,0.388,3112.8,3111.9,1.0]
[1642564676236,0.00227369,3112.3,3111.9,1.0]
[1642564676441,0.00227369,3112.3,3111.9,1.3]
[1642564676637,0.00170527,3112.2,3111.9,1.3]
[1642564677036,0.80364,3113.1,3111.9,1.3]
[1642564677037,0.00113684,3112.1,3112.0,7.47029805]
[1642564677243,0.00113684,3112.1,3112.0,8.47029805]
[1642564677636,0.00113684,3112.1,3112.0,8.77029805]
[1642564678037,3.684e-05,3112.1,3112.0,7.4]
[1642564678940,3.684e-05,3112.1,3112.0,7.94596778]
[1642564679380,3.684e-05,3112.1,3112.0,1.54596778]
[1642564679584,3.684e-05,3112.1,3112.0,0.54596778]
[1642564679784,3.20003684,3112.1,3112.0,3.59596778]
[1642564679984,1.23675736,3112.9,3112.1,1.16785187]
[1642564680190,1.37676202,3112.4,3112.1,1.16785187]
[1642564680589,0.388,3112.3,3112.1,1.16785187]
[1642564681589,7.35395,3112.1,3111.7,0.00113685]
[1642564681792,7.35395,3112.1,3111.1,3.18265746]
[1642564681793,1.21015727,3111.9,3110.3,4.09867969]
[1642564681989,6.55,3111.7,3111.5,0.00227369]
[1642564682187,6.938,3111.6,3111.5,0.00227369]
[1642564682388,1.29017522,3110.8,3109.9,3.19528558]
[1642564682588,0.388,3111.6,3109.9,0.91055579]
[1642564682589,0.80423,3110.6,3109.9,0.91055579]
[1642564682791,4.65308457,3112.5,3110.6,1.96832159]
[1642564683148,0.3902737,3111.9,3110.7,0.00454738]
[1642564683334,0.388,3111.8,3110.7,1.35690368]
[1642564683536,0.388,3111.8,3110.7,2.35690368]
[1642564683537,0.38970527,3111.8,3110.7,2.35690368]
[1642564683738,0.1312,3114.0,3111.2,0.01203224]
[1642564683739,0.00113685,3111.7,3111.2,0.01203224]
[1642564683936,4.848,3113.9,3111.4,0.10682639]
[1642564683937,0.388,3112.5,3111.4,0.10682639]
[1642564684134,0.00625266,3112.6,3111.4,1.0]
[1642564684337,0.00625266,3112.6,3111.5,0.00113685]
[1642564684538,2.77216714,3113.1,3111.5,0.00113685]
[1642564684539,1.34110766,3112.4,3111.5,0.00113685]
[1642564684737,1.34110766,3112.4,3111.1,0.00341054]
[1642564684738,0.41203796,3112.3,3111.1,0.00341054]
[1642564684936,0.41203796,3112.3,3110.6,1.96832159]
[1642564684937,1.38322607,3110.9,3110.7,0.00568423]
[1642564685137,0.388,3110.8,3110.7,0.00568423]
[1642564685740,0.0913,3110.8,3110.7,0.00568423]
[1642564686239,2.23174272,3110.8,3110.7,0.00568423]
[1642564686441,6.55,3110.5,3108.0,0.80429]
[1642564686647,6.55,3110.5,3107.9,7.21860249]
[1642564686648,0.01289138,3109.0,3108.4,1.61495215]
[1642564686898,0.01289138,3109.0,3106.6,4.09825338]
[1642564686899,0.16803077,3108.2,3106.6,4.09825338]
[1642564687093,3.18356,3107.4,3106.7,0.01239672]
[1642564687295,1.29242074,3107.3,3106.7,0.02035465]
[1642564687495,0.388,3107.2,3106.7,0.02035465]
[1642564687694,0.388,3107.2,3106.8,1.55519889]
[1642564687695,0.89909684,3107.1,3106.8,1.55519889]
[1642564687890,0.89909684,3106.9,3106.8,1.55519889]
[1642564688090,0.388,3107.5,3106.9,0.74033607]
[1642564688295,0.80476,3108.4,3107.4,0.0126523]
[1642564688500,0.80476,3108.4,3106.9,0.09133607]
[1642564688501,2.88356,3107.4,3107.0,0.00625266]
[1642564688694,1.61418738,3108.9,3107.0,0.00625266]
[1642564688695,0.13094738,3108.9,3107.5,6.55]
[1642564688896,0.388,3108.3,3107.5,6.55]
[1642564689094,0.388,3108.3,3108.2,6.56264717]
[1642564689393,0.38913684,3108.3,3108.2,8.10063233]
[1642564689598,0.38913684,3108.3,3108.2,1.55063233]
[1642564689800,0.38913684,3108.3,3107.6,0.00284212]
[1642564690201,1.17575539,3107.2,3107.1,0.00568424]
[1642564690399,1.56375539,3107.2,3107.1,0.00568424]
[1642564690837,1.27085539,3107.2,3107.1,3.45]
[1642564691032,1.27085539,3107.2,3107.1,4.657044]
[1642564691231,1.27085539,3107.2,3107.1,4.66272824]
[1642564691633,1.27085539,3107.2,3107.1,7.76272824]
[1642564692033,1.27085539,3107.2,3107.1,10.49645111]
[1642564692432,1.27085539,3107.2,3107.1,10.79645111]
[1642564692631,1.27085539,3107.2,3107.1,12.09645111]
[1642564692831,0.00113684,3108.3,3107.4,1.81148318]
[1642564693031,0.00113684,3108.3,3107.5,2.73372287]
[1642564693032,0.388,3108.2,3107.5,2.73372287]
[1642564693233,0.388,3108.2,3107.6,1.22393504]
[1642564693440,0.388,3108.2,3107.6,1.22677716]
[1642564693638,0.388,3108.2,3107.8,0.04489401]
[1642564693837,0.388,3109.0,3108.1,0.01229332]
[1642564694232,0.388,3109.0,3108.2,2.7330624]
[1642564694491,0.388,3109.0,3108.2,3.3330624]
[1642564694689,0.388,3109.0,3108.3,2.47936722]
[1642564695091,0.388,3109.0,3108.4,2.73287166]
[1642564695488,0.388,3109.0,3108.6,0.02966104]
[1642564695689,0.388,3109.0,3108.6,0.3]
[1642564695891,0.0937,3109.0,3108.6,0.3]
[1642564696489,1.4810443,3109.5,3108.4,0.3]
[1642564696795,1.4810443,3109.5,3108.3,0.6]